Workbook

Sheet интернат гимн
A1: Согласовано | O1: Утверждено
O2: ООО "КРЕПЫШ"
O3: _______________________Ефремов В.Ю.
A5: Меню для организации питания детей в возрасте с 7-10 лет, проживающих в интернате Мензелинского муниципального района на 2 полугодие 2023-2024 учебный год.
A7: 1 день, 1 неделя
A8: № рецептуры | B8: Прием пищи, наименование блюда | C8: Масса | D8: Пищевые вещества | G8: Энергетическая ценность | H8: Витамины | M8: Минеральные вещества
D9: Белки | E9: Жиры | F9: Углеводы | H9: B1 | I9: B2 | J9: A | K9: D | L9: C | M9: Na | N9: K | O9: Ca | P9: Mg | Q9: P | R9: Fe | S9: I | T9: Se | U9: F
C10: г | D10: г | E10: г | F10: г | G10: ккал | H10: мг | I10: мг | J10: мкг рет.экв | K10: мкг | L10: мг | M10: мг | N10: мг | O10: мг | P10: мг | Q10: мг | R10: мг | S10: мкг | T10: мкг | U10: мкг
B11: Завтрак
A12: 54-1о-2020 | B12: Омлет натуральный | C12: 150 | D12: 12.68 | E12: 17.95 | F12: 3.25 | G12: 225.2 | H12: 0.07 | I12: 0.4 | J12: 182.66 | K12: 2.18 | L12: 0 | M12: 264 | N12: 180 | O12: 110 | P12: 17 | Q12: 202 | R12: 2.1 | S12: 43.65 | T12: 26 | U12: 62.62
A13: 54-23гн-2020 | B13: Кофейный напиток с молоком | C13: 200 | D13: 3.9 | E13: 2.9 | F13: 11.2 | G13: 86 | H13: 0.03 | I13: 0.13 | J13: 13.29 | K13: 0 | L13: 0.52 | M13: 38.55 | N13: 183.98 | O13: 148.32 | P13: 30.67 | Q13: 106.79 | R13: 1.06 | S13: 9 | T13: 1.76 | U13: 20
A14: Пром. | B14: Хлеб пшеничный | C14: 40 | D14: 2.3 | E14: 0.2 | F14: 14.8 | G14: 70.3 | H14: 0.03 | I14: 0.01 | J14: 0 | K14: 0 | L14: 0 | M14: 149.7 | N14: 27.9 | O14: 6 | P14: 4.2 | Q14: 19.5 | R14: 0.33 | S14: 0.96 | T14: 1.8 | U14: 4.35
A15: Пром. | B15: Фрукт (яблоко, банан, апельсин) | C15: 100 | D15: 0.4 | E15: 0.4 | F15: 9.8 | G15: 44.4 | H15: 0.03 | I15: 0.02 | J15: 5 | K15: 0 | L15: 10 | M15: 26 | N15: 278 | O15: 16 | P15: 9 | Q15: 11 | R15: 2.2 | S15: 2 | T15: 0.3 | U15: 8
B16: Итого за Завтрак | C16: =C12+C13+C14+C15 -> 490 | D16: =D12+D13+D14+D15 -> 19.28 | E16: 21.45 | F16: 39.05 | G16: 425.9 | H16: 0.16 | I16: 0.56 | J16: 200.95 | K16: 2.18 | L16: 10.52 | M16: 478.25 | N16: 669.88 | O16: 280.32 | P16: 60.87 | Q16: 339.29 | R16: 5.69 | S16: 55.61 | T16: 29.86 | U16: 94.97
B17: Обед
A18: 54-13з-2020 | B18: Салат из свеклы отварной с растительным маслом | C18: 60 | D18: 0.8 | E18: 2.7 | F18: 6.6 | G18: 45.6 | H18: 0.01 | I18: 0.02 | J18: 0.68 | K18: 0 | L18: 2.28 | M18: 78.77 | N18: 136.27 | O18: 19.21 | P18: 10.95 | Q18: 21.51 | R18: 0.7 | S18: 11.99 | T18: 0.35 | U18: 11.4
A19: 100 | B19: Суп картофельный с вермишелью | C19: 200 | D19: 2.3 | E19: 2.2 | F19: 16.2 | G19: 94.4 | H19: 0.1 | I19: 0 | J19: 0.2 | K19: 0 | L19: 5.3 | M19: 0 | N19: 0 | O19: 19.2 | P19: 18.7 | Q19: 46.1 | R19: 0.9 | S19: 0 | T19: 0 | U19: 0
A20: 54-4г-2020 | B20: Каша гречневая рассыпчатая | C20: 150 | D20: 8.2 | E20: 6.3 | F20: 35.9 | G20: 107.1 | H20: 0.21 | I20: 0.12 | J20: 19.19 | K20: 0.09 | L20: 0 | M20: 149.45 | N20: 219.36 | O20: 46.62 | P20: 120.16 | Q20: 180.99 | R20: 4.05 | S20: 22.28 | T20: 3.52 | U20: 16.06
A21: ном.рец №174 | B21: Тефтели мясные из говядины, полуфабрикат в соусе | C21: 75/30 | D21: 10.81 | E21: 10.4 | F21: 8.42 | G21: 168.9 | H21: 0 | I21: 0 | J21: 38.45 | K21: 0.01 | L21: 1.79 | M21: 3 | N21: 43 | O21: 45.75 | P21: 35.13 | Q21: 109 | R21: 1.6 | S21: 0 | T21: 0 | U21: 0
A22: 54-4гн-2020 | B22: Чай с молоком и сахаром | C22: 200 | D22: 1.6 | E22: 1.1 | F22: 8.6 | G22: 50.9 | H22: 0.01 | I22: 0.07 | J22: 6.9 | K22: 0 | L22: 0.3 | M22: 19.68 | N22: 81.35 | O22: 103.48 | P22: 9.92 | Q22: 46.33 | R22: 0.78 | S22: 4.5 | T22: 0.88 | U22: 10
A23: Т/к №102 | B23: Оладьи П/Ф (35 гр) 2шт | C23: 70 | D23: 5.6 | E23: 7.7 | F23: 37.8 | G23: 206.64 | H23: 0.16 | I23: 0 | J23: 0 | K23: 0 | L23: 0 | M23: 0 | N23: 0 | O23: 196.9 | P23: 38.48 | Q23: 85 | R23: 0.96 | S23: 0 | T23: 0 | U23: 0
A24: Пром. | B24: Хлеб ржаной | C24: 20 | D24: 1.3 | E24: 0.2 | F24: 6.7 | G24: 34.2 | H24: 0.04 | I24: 0.02 | J24: 0 | K24: 0 | L24: 0 | M24: 122 | N24: 49 | O24: 7 | P24: 9.4 | Q24: 31.6 | R24: 0.78 | S24: 0 | T24: 6.18 | U24: 0
A25: 54-1з | B25: Сыр твердых сортов в нарезке | C25: 20 | D25: 0.5 | E25: 0.55 | F25: 0 | G25: 71.7 | H25: 0.01 | I25: 0.06 | J25: 52 | K25: 0.19 | L25: 0 | M25: 162 | N25: 18 | O25: 176 | P25: 7 | Q25: 100 | R25: 0.2 | S25: 0 | T25: 2.9 | U25: 0
B26: Итого за Обед | C26: 825 | D26: =D18+D19+D20+D21+D22+D23+D24+D25 -> 31.11 | E26: =E18+E19+E20+E21+E22+E23+E24+E25 -> 31.15 | F26: 120.22 | G26: 779.44 | H26: 0.54 | I26: 0.29 | J26: 117.42 | K26: 0.29 | L26: 9.67 | M26: 534.9 | N26: 546.98 | O26: 614.16 | P26: 249.74 | Q26: 620.53 | R26: 9.97 | S26: 38.77 | T26: 13.83 | U26: 37.46
B27: Полдник
A28: Пром. | B28: Сок персиковый | C28: 200 | D28: 0.6 | E28: 0 | F28: 33 | G28: 134.4 | H28: 0.03 | I28: 0.06 | J28: 60 | K28: 0 | L28: 5 | M28: 9 | N28: 252 | O28: 9 | P28: 21 | Q28: 26 | R28: 0.3 | S28: 0 | T28: 0 | U28: 0
A29: Пром. | B29: Пряник | C29: 30 | D29: 1.8 | E29: 1.4 | F29: 22.5 | G29: 109.8 | H29: 0.02 | I29: 0.01 | J29: 0 | K29: 0 | L29: 0 | M29: 0.6 | N29: 21.3 | O29: 3.3 | P29: 2.7 | Q29: 15 | R29: 0.24 | S29: 0 | T29: 0 | U29: 0
B30: Итого за Полдник | C30: =C28+C29 -> 230 | D30: =D28+D29 -> 2.4 | E30: 1.4 | F30: 55.5 | G30: 244.2 | H30: 0.05 | I30: 0.07 | J30: 60 | K30: 0 | L30: 5 | M30: 9.6 | N30: 273.3 | O30: 12.3 | P30: 23.7 | Q30: 41 | R30: 0.54 | S30: 0 | T30: 0 | U30: 0
B31: Ужин
A32: 54-1г-2020 | B32: Макароны отварные | C32: 150 | D32: 5.3 | E32: 4.9 | F32: 32.8 | G32: 196.8 | H32: 0.06 | I32: 0.02 | J32: 18.36 | K32: 0.09 | L32: 0 | M32: 149.04 | N32: 53.8 | O32: 105.83 | P32: 7.19 | Q32: 40.7 | R32: 0.73 | S32: 20.77 | T32: 0.06 | U32: 11.92
A33: 54-2м-2020 | B33: Гуляш из говядины | C33: 60/40 | D33: 13.76 | E33: 13.91 | F33: 3.9 | G33: 195.8 | H33: 0.04 | I33: 0.12 | J33: 25.46 | K33: 0.07 | L33: 1 | M33: 122 | N33: 322 | O33: 55 | P33: 23 | Q33: 166 | R33: 2.5 | S33: 17.06 | T33: 0.4 | U33: 62.71
A34: 54-1хн-2020 | B34: Компот из смеси сухофруктов | C34: 200 | D34: 0.5 | E34: 0 | F34: 19.8 | G34: 81 | H34: 0 | I34: 0 | J34: 15 | K34: 0 | L34: 0.02 | M34: 0.05 | N34: 0.17 | O34: 108.08 | P34: 2.11 | Q34: 4.31 | R34: 0.08 | S34: 0 | T34: 0 | U34: 0
A35: Пром. | B35: Хлеб пшеничный | C35: 30 | D35: 2.3 | E35: 0.2 | F35: 14.8 | G35: 70.3 | H35: 0.03 | I35: 0.01 | J35: 0 | K35: 0 | L35: 0 | M35: 149.7 | N35: 27.9 | O35: 6 | P35: 4.2 | Q35: 19.5 | R35: 0.33 | S35: 0.96 | T35: 1.8 | U35: 4.35
A36: Пром. | B36: Хлеб ржаной | C36: 20 | D36: 1.3 | E36: 0.2 | F36: 6.7 | G36: 34.2 | H36: 0.04 | I36: 0.02 | J36: 0 | K36: 0 | L36: 0 | M36: 122 | N36: 49 | O36: 7 | P36: 9.4 | Q36: 31.6 | R36: 0.78 | S36: 0 | T36: 6.18 | U36: 0
B37: Итого за Ужин | C37: 500 | D37: =D32+D33+D34+D35+D15+D39+D36 -> 29.36 | E37: =E32+E33+E34+E35+E15+E39+E36 -> 24.61 | F37: 96.2 | G37: 724.3 | H37: 0.23 | I37: 0.4 | J37: 90.22 | K37: 0.16 | L37: 11.02 | M37: 644.79 | N37: 972.87 | O37: 515.91 | P37: 78.9 | Q37: 433.11 | R37: 6.82 | S37: 58.79 | T37: 10.54 | U37: 126.98
B38: Ужин 2
A39: Пром. | B39: Ряженка 2.5% | C39: 200 | D39: 5.8 | E39: 5 | F39: 8.4 | G39: 101.8 | H39: 0.03 | I39: 0.21 | J39: 26.4 | K39: 0 | L39: 0 | M39: 76 | N39: 242 | O39: 218 | P39: 24 | Q39: 160 | R39: 0.2 | S39: 18 | T39: 1.8 | U39: 40
B40: Итого за ужин 2 | C40: =C39 -> 200 | D40: =D39 -> 5.8 | E40: 5 | F40: 8.4 | G40: 101.8 | H40: 0.03 | I40: 0.21 | J40: 26.4 | K40: 0 | L40: 0 | M40: 76 | N40: 242 | O40: 218 | P40: 24 | Q40: 160 | R40: 0.2 | S40: 18 | T40: 1.8 | U40: 40
B41: Итого за день | C41: =C16+C26+C30+C37+C40 -> 2245 | D41: =D16+D26+D30+D37+D40 -> 87.95 | E41: 83.61 | F41: 319.37 | G41: 2275.64 | H41: 1.01 | I41: 1.53 | J41: 494.99 | K41: 2.63 | L41: 36.21 | M41: 1743.54 | N41: 2705.03 | O41: 1640.69 | P41: 437.21 | Q41: 1593.93 | R41: 23.22 | S41: 171.17 | T41: 56.03 | U41: 299.41
A43: 2 день, 1 неделя
A44: № рецептуры | B44: Прием пищи, наименование блюда | C44: Масса | D44: Пищевые вещества | G44: Энергетическая ценность | H44: Витамины | M44: Минеральные вещества
D45: Белки | E45: Жиры | F45: Углеводы | H45: B1 | I45: B2 | J45: A | K45: D | L45: C | M45: Na | N45: K | O45: Ca | P45: Mg | Q45: P | R45: Fe | S45: I | T45: Se | U45: F
C46: г | D46: г | E46: г | F46: г | G46: ккал | H46: мг | I46: мг | J46: мкг рет.экв | K46: мкг | L46: мг | M46: мг | N46: мг | O46: мг | P46: мг | Q46: мг | R46: мг | S46: мкг | T46: мкг | U46: мкг
B47: Завтрак
A48: 54-1з-2020 | B48: Сыр твердых сортов в нарезке | C48: 10 | D48: 3.48 | E48: 4.42 | F48: 0 | G48: 53.7 | H48: 0 | I48: 0.04 | J48: 23.4 | K48: 0.14 | L48: 0.04 | M48: 92.34 | N48: 10.96 | O48: 116.16 | P48: 4.57 | Q48: 65.25 | R48: 0.13 | S48: 0 | T48: 1.9 | U48: 0
A49: 54-22к-2020 | B49: Каша жидкая молочная овсяная | C49: 200 | D49: 6.82 | E49: 7.44 | F49: 24.61 | G49: 192.6 | H49: 0.14 | I49: 0.17 | J49: 29.08 | K49: 0.07 | L49: 1 | M49: 348 | N49: 237 | O49: 164 | P49: 45 | Q49: 188 | R49: 1.1 | S49: 52.01 | T49: 9.9 | U49: 49.61
A50: 54-2гн-2020 | B50: Чай с сахаром | C50: 200 | D50: 0.2 | E50: 0 | F50: 6.4 | G50: 26.8 | H50: 0 | I50: 0.01 | J50: 0.3 | K50: 0 | L50: 0.04 | M50: 0.68 | N50: 20.76 | O50: 66.08 | P50: 3.83 | Q50: 7.18 | R50: 0.73 | S50: 0 | T50: 0 | U50: 0
A51: Пром. | B51: Хлеб пшеничный | C51: 30 | D51: 2.3 | E51: 0.2 | F51: 14.8 | G51: 70.3 | H51: 0.03 | I51: 0.01 | J51: 0 | K51: 0 | L51: 0 | M51: 149.7 | N51: 27.9 | O51: 6 | P51: 4.2 | Q51: 19.5 | R51: 0.33 | S51: 0.96 | T51: 1.8 | U51: 4.35
A52: Пром. | B52: Хлеб ржаной | C52: 20 | D52: 1.3 | E52: 0.2 | F52: 6.7 | G52: 34.2 | H52: 0.04 | I52: 0.02 | J52: 0 | K52: 0 | L52: 0 | M52: 122 | N52: 49 | O52: 7 | P52: 9.4 | Q52: 31.6 | R52: 0.78 | S52: 0 | T52: 6.18 | U52: 0
B53: Итого за Завтрак | C53: =C48+C49+C50+C51+C52 -> 460 | D53: =D48+D49+D50+D51+D52 -> 14.1 | E53: 12.26 | F53: 52.51 | G53: 377.6 | H53: 0.21 | I53: 0.25 | J53: 52.78 | K53: 0.21 | L53: 1.08 | M53: 712.72 | N53: 345.62 | O53: 359.24 | P53: 67 | Q53: 311.53 | R53: 3.07 | S53: 52.97 | T53: 19.78 | U53: 53.96
B54: Обед
A55: 54-1с-2020 | B55: Суп щи | C55: 200 | D55: 4.66 | E55: 5.63 | F55: 5.73 | G55: 92.2 | H55: 0.01 | I55: 0.03 | J55: 104.94 | K55: 0 | L55: 10 | M55: 98 | N55: 184 | O55: 37 | P55: 13 | Q55: 30 | R55: 0.4 | S55: 15.25 | T55: 0.2 | U55: 14.76
A56: 54-6г-2020 | B56: Рис отварной | C56: 150 | D56: 3.6 | E56: 4.8 | F56: 36.4 | G56: 203.5 | H56: 0.03 | I56: 0.02 | J56: 18.36 | K56: 0.09 | L56: 0 | M56: 152.8 | N56: 46.55 | O56: 106.65 | P56: 23.59 | Q56: 72.57 | R56: 0.49 | S56: 20.76 | T56: 7.24 | U56: 27.19
A57: №Т/К 272 | B57: Котлета мясная с соусом и овощами (мексик.смесь) | C57: 65/35/35 | D57: 11.28 | E57: 10.37 | F57: 12.4 | G57: 179.2 | H57: 0 | I57: 0 | J57: 0.1 | K57: 0 | L57: 1.8 | M57: 0 | N57: 0 | O57: 18.9 | P57: 22.1 | Q57: 115.5 | R57: 1.9 | S57: 0 | T57: 0 | U57: 0
A58: 54-5хн | B58: Компот из яблок и вишни | C58: 200 | D58: 0.23 | E58: 0.11 | F58: 10.15 | G58: 22.5 | H58: 0 | I58: 0 | J58: 2.53 | K58: 0 | L58: 2 | M58: 8 | N58: 91 | O58: 64 | P58: 6 | Q58: 7 | R58: 0.5 | S58: 0.82 | T58: 0.1 | U58: 4.18
A59: Пром. | B59: Хлеб пшеничный | C59: 20 | D59: 1.52 | E59: 0.16 | F59: 9.84 | G59: 46.9 | H59: 0.02 | I59: 0.01 | J59: 0 | K59: 0 | L59: 0 | M59: 100 | N59: 19 | O59: 4 | P59: 3 | Q59: 13 | R59: 0.2 | S59: 0.64 | T59: 1.2 | U59: 2.9
A60: Пром. | B60: Хлеб ржаной | C60: 20 | D60: 1.3 | E60: 0.2 | F60: 6.7 | G60: 34.2 | H60: 0.04 | I60: 0.02 | J60: 0 | K60: 0 | L60: 0 | M60: 122 | N60: 49 | O60: 7 | P60: 9.4 | Q60: 31.6 | R60: 0.78 | S60: 0 | T60: 6.18 | U60: 0
A61: Пром. | B61: Сушка простая | C61: 30 | D61: 0.8 | E61: 0.39 | F61: 3.5 | G61: 26.5 | H61: 0.05 | I61: 0.02 | J61: 0 | K61: 0 | L61: 0 | M61: 138 | N61: 46 | O61: 8 | P61: 12 | Q61: 32 | R61: 0.8 | S61: 0 | T61: 0 | U61: 0
B62: Итого за Обед | C62: 755 | D62: =SUM(D55:D61) -> 23.39 | E62: =SUM(E55:E61) -> 21.66 | F62: =SUM(F55:F61) -> 84.72 | G62: =SUM(G55:G61) -> 605 | H62: =SUM(H55:H61) -> 0.15 | I62: =SUM(I55:I61) -> 0.1 | J62: =SUM(J55:J61) -> 125.93 | K62: =SUM(K55:K61) -> 0.09 | L62: =SUM(L55:L61) -> 13.8 | M62: =SUM(M55:M61) -> 618.8 | N62: =SUM(N55:N61) -> 435.55 | O62: =SUM(O55:O61) -> 245.55 | P62: =SUM(P55:P61) -> 89.09 | Q62: =SUM(Q55:Q61) -> 301.67 | R62: =SUM(R55:R61) -> 5.07 | S62: =SUM(S55:S61) -> 37.47 | T62: =SUM(T55:T61) -> 14.92 | U62: =SUM(U55:U61) -> 49.03
B63: Полдник
A64: Пром. | B64: Вафли с фруктовыми начинками | C64: 30 | D64: 0.84 | E64: 0.99 | F64: 23.19 | G64: 105 | H64: 0.01 | I64: 0.01 | J64: 0.54 | K64: 0 | L64: 0 | M64: 11.17 | N64: 34.86 | O64: 4.22 | P64: 2.61 | Q64: 9.4 | R64: 0.39 | S64: 0 | T64: 0 | U64: 0
A65: Пром. | B65: Сок яблочный | C65: 200 | D65: 1 | E65: 0.2 | F65: 20.2 | G65: 86.6 | H65: 0.02 | I65: 0.02 | J65: 0 | K65: 0 | L65: 4 | M65: 12 | N65: 240 | O65: 14 | P65: 8 | Q65: 14 | R65: 2.8 | S65: 0 | T65: 0 | U65: 0
B66: Итого за Полдник | C66: =C64+C65 -> 230 | D66: =D64+D65 -> 1.84 | E66: 1.19 | F66: 43.39 | G66: 191.6 | H66: 0.03 | I66: 0.03 | J66: 0.54 | K66: 0 | L66: 4 | M66: 23.17 | N66: 274.86 | O66: 18.22 | P66: 10.61 | Q66: 23.4 | R66: 3.19 | S66: 0 | T66: 0 | U66: 0
B67: Ужин
A68: 54-6т-2020 | B68: Сырники из творога | C68: 160 | D68: 31.4 | E68: 9.2 | F68: 26.3 | G68: 313.2 | H68: 0.07 | I68: 0.33 | J68: 46.02 | K68: 0.15 | L68: 0.3 | M68: 146.88 | N68: 169.42 | O68: 219.92 | P68: 33.17 | Q68: 304.73 | R68: 0.87 | S68: 27.47 | T68: 40.06 | U68: 54.51
A69: 54-33хн-2020 | B69: Напиток апельсиновый | C69: 200 | D69: 0.2 | E69: 0 | F69: 8 | G69: 33 | H69: 0.01 | I69: 0.01 | J69: 1.06 | K69: 0 | L69: 5.28 | M69: 2.23 | N69: 36.15 | O69: 74.47 | P69: 2.49 | Q69: 4.4 | R69: 0.08 | S69: 0.44 | T69: 0.1 | U69: 3.74
A70: Пром. | B70: Хлеб пшеничный | C70: 30 | D70: 2.3 | E70: 0.2 | F70: 14.8 | G70: 70.3 | H70: 0.03 | I70: 0.01 | J70: 0 | K70: 0 | L70: 0 | M70: 149.7 | N70: 27.9 | O70: 6 | P70: 4.2 | Q70: 19.5 | R70: 0.33 | S70: 0.96 | T70: 1.8 | U70: 4.35
A71: 451 СПБ 2008 | B71: Пирожок печеный с картошкой | C71: 100 | D71: 1.6 | E71: 0.2 | F71: 10.3 | G71: 49.6 | H71: 0.03 | I71: 0.01 | J71: 0 | K71: 0 | L71: 0 | M71: 90.75 | N71: 27.75 | O71: 4.5 | P71: 6.9 | Q71: 18.15 | R71: 0.44 | S71: 0 | T71: 0 | U71: 0
B72: Итого за Ужин | C72: =C68+C69+C70+C71 -> 490 | D72: =D68+D69+D70+D71 -> 35.5 | E72: 9.6 | F72: 59.4 | G72: 466.1 | H72: 0.14 | I72: 0.36 | J72: 47.08 | K72: 0.15 | L72: 5.58 | M72: 389.56 | N72: 261.22 | O72: 304.89 | P72: 46.76 | Q72: 346.78 | R72: 1.72 | S72: 28.87 | T72: 41.96 | U72: 62.6
B73: Ужин 2
A74: Пром. | B74: Кефир 3.2% | C74: 200 | D74: 5.8 | E74: 5 | F74: 8 | G74: 100.2 | H74: 0.06 | I74: 0.27 | J74: 26.4 | K74: 0 | L74: 1 | M74: 76 | N74: 242 | O74: 211 | P74: 24 | Q74: 157 | R74: 0.2 | S74: 18 | T74: 3.5 | U74: 40
B75: Итого за ужин 2 | C75: =C74 -> 200 | D75: =D74 -> 5.8 | E75: 5 | F75: 8 | G75: 100.2 | H75: 0.06 | I75: 0.27 | J75: 26.4 | K75: 0 | L75: 1 | M75: 76 | N75: 242 | O75: 211 | P75: 24 | Q75: 157 | R75: 0.2 | S75: 18 | T75: 3.5 | U75: =U74 -> 40
B76: Итого за день | C76: =C53+C62+C66+C72+C75 -> 2135 | D76: =D53+D62+D66+D72+D75 -> 80.63 | E76: =E53+E62+E66+E72+E75 -> 49.71 | F76: =F53+F62+F66+F72+F75 -> 248.02 | G76: =G53+G62+G66+G72+G75 -> 1740.5 | H76: =H53+H62+H66+H72+H75 -> 0.59 | I76: =I53+I62+I66+I72+I75 -> 1.01 | J76: =J53+J62+J66+J72+J75 -> 252.73 | K76: =K53+K62+K66+K72+K75 -> 0.45 | L76: =L53+L62+L66+L72+L75 -> 25.46 | M76: =M53+M62+M66+M72+M75 -> 1820.25 | N76: =N53+N62+N66+N72+N75 -> 1559.25 | O76: =O53+O62+O66+O72+O75 -> 1138.9 | P76: =P53+P62+P66+P72+P75 -> 237.46 | Q76: =Q53+Q62+Q66+Q72+Q75 -> 1140.38 | R76: =R53+R62+R66+R72+R75 -> 13.25 | S76: =S53+S62+S66+S72+S75 -> 137.31 | T76: =T53+T62+T66+T72+T75 -> 80.16 | U76: =U53+U62+U66+U72+U75 -> 205.59
A78: 3 день, 1 неделя
A79: № рецептуры | B79: Прием пищи, наименование блюда | C79: Масса | D79: Пищевые вещества | G79: Энергетическая ценность | H79: Витамины | M79: Минеральные вещества
D80: Белки | E80: Жиры | F80: Углеводы | H80: B1 | I80: B2 | J80: A | K80: D | L80: C | M80: Na | N80: K | O80: Ca | P80: Mg | Q80: P | R80: Fe | S80: I | T80: Se | U80: F
C81: г | D81: г | E81: г | F81: г | G81: ккал | H81: мг | I81: мг | J81: мкг рет.экв | K81: мкг | L81: мг | M81: мг | N81: мг | O81: мг | P81: мг | Q81: мг | R81: мг | S81: мкг | T81: мкг | U81: мкг
B82: Завтрак
A83: 53-19з-2020 | B83: Масло сливочное (порциями) | C83: 10 | D83: 0.08 | E83: 7.25 | F83: 0.13 | G83: 66.1 | H83: 0 | I83: 0.01 | J83: 27 | K83: 0.13 | L83: 0 | M83: 1.14 | N83: 2.49 | O83: 2.11 | P83: 0 | Q83: 2.61 | R83: 0.02 | S83: 0 | T83: 0.1 | U83: 0.3
A84: 54-21к-2020 | B84: Каша вязкая молочная ячневая | C84: 150 | D84: 5.4 | E84: 7 | F84: 25.6 | G84: 186.8 | H84: 0.09 | I84: 0.13 | J84: 31.14 | K84: 0.1 | L84: 0.43 | M84: 256.67 | N84: 158.61 | O84: 127.09 | P84: 24.68 | Q84: 166.41 | R84: 0.63 | S84: 37.43 | T84: 12.57 | U84: 46.68
A85: 54-1хн-2020 | B85: Компот из смеси сухофруктов | C85: 200 | D85: 0.5 | E85: 0 | F85: 19.8 | G85: 81 | H85: 0 | I85: 0 | J85: 15 | K85: 0 | L85: 0.02 | M85: 0.05 | N85: 0.17 | O85: 108.08 | P85: 2.11 | Q85: 4.31 | R85: 0.08 | S85: 0 | T85: 0 | U85: 0
A86: Пром. | B86: Хлеб пшеничный | C86: 40 | D86: 2.3 | E86: 0.2 | F86: 14.8 | G86: 70.3 | H86: 0.03 | I86: 0.01 | J86: 0 | K86: 0 | L86: 0 | M86: 149.7 | N86: 27.9 | O86: 6 | P86: 4.2 | Q86: 19.5 | R86: 0.33 | S86: 0.96 | T86: 1.8 | U86: 4.35
B87: Итого за Завтрак | C87: =C83+C84+C85+C86 -> 400 | D87: =D83+D84+D85+D86 -> 8.28 | E87: 14.45 | F87: 60.33 | G87: 404.2 | H87: 0.12 | I87: 0.15 | J87: 73.14 | K87: 0.23 | L87: 0.45 | M87: 407.56 | N87: 189.17 | O87: 243.28 | P87: 30.99 | Q87: 192.83 | R87: 1.06 | S87: 38.39 | T87: 14.47 | U87: 51.33
B88: Обед
A89: 54-16з-2020 | B89: Винегрет с растительным маслом | C89: 60 | D89: 0.7 | E89: 5.4 | F89: 4 | G89: 67.1 | H89: 0.02 | I89: 0.02 | J89: 72.89 | K89: 0 | L89: 2.26 | M89: 200.99 | N89: 127.85 | O89: 12.1 | P89: 9.66 | Q89: 21.4 | R89: 0.41 | S89: 7.86 | T89: 0.13 | U89: 11.85
A90: 54-11с-2020 | B90: Суп крестьянский с крупой (крупа рисовая) | C90: 200 | D90: 5 | E90: 5.8 | F90: 11.3 | G90: 116.9 | H90: 0.04 | I90: 0.04 | J90: 103.29 | K90: 0 | L90: 6.42 | M90: 96.69 | N90: 195.41 | O90: 25.55 | P90: 15.32 | Q90: 40.39 | R90: 0.5 | S90: 15.37 | T90: 1.25 | U90: 20.68
A91: 54-1г-2020 | B91: Макароны отварные | C91: 150 | D91: 5.3 | E91: 4.9 | F91: 32.8 | G91: 196.8 | H91: 0.06 | I91: 0.02 | J91: 18.36 | K91: 0.09 | L91: 0 | M91: 149.04 | N91: 53.8 | O91: 105.83 | P91: 7.19 | Q91: 40.7 | R91: 0.73 | S91: 20.77 | T91: 0.06 | U91: 11.92
A92: № рец. 290 | B92: Птица тушеная в соусе | C92: 80/30 | D92: 13.8 | E92: 14.8 | F92: 3.9 | G92: 145 | H92: 0.1 | I92: 0 | J92: 0 | K92: 0 | L92: 1.5 | M92: 0 | N92: 0 | O92: 26.4 | P92: 16.6 | Q92: 115.3 | R92: 0.9 | S92: 0 | T92: 0 | U92: 0
A93: 54-3гн-2020 | B93: Чай с лимоном и сахаром | C93: 207 | D93: 0.2 | E93: 0.1 | F93: 6.6 | G93: 27.9 | H93: 0 | I93: 0.01 | J93: 0.38 | K93: 0 | L93: 1.16 | M93: 1.26 | N93: 30.23 | O93: 67 | P93: 4.56 | Q93: 8.52 | R93: 0.77 | S93: 0.01 | T93: 0.02 | U93: 0.7
A94: Пром. | B94: Хлеб ржаной | C94: 20 | D94: 1.3 | E94: 0.2 | F94: 6.7 | G94: 34.2 | H94: 0.04 | I94: 0.02 | J94: 0 | K94: 0 | L94: 0 | M94: 122 | N94: 49 | O94: 7 | P94: 9.4 | Q94: 31.6 | R94: 0.78 | S94: 0 | T94: 6.18 | U94: 0
A95: Пром. | B95: Хлеб пшеничный | C95: 20 | D95: 1.52 | E95: 0.16 | F95: 9.84 | G95: 46.9 | H95: 0.02 | I95: 0.01 | J95: 0 | K95: 0 | L95: 0 | M95: 100 | N95: 19 | O95: 4 | P95: 3 | Q95: 13 | R95: 0.2 | S95: 0.64 | T95: 1.2 | U95: 2.9
A96: Пром. | B96: Фрукт (яблоко, банан, апельсин) | C96: 100 | D96: 0.6 | E96: 0.6 | F96: 14.7 | G96: 66.6 | H96: 0.04 | I96: 0.03 | J96: 7.5 | K96: 0 | L96: 15 | M96: 39 | N96: 417 | O96: 24 | P96: 14 | Q96: 17 | R96: 3.3 | S96: 3 | T96: 0.4 | U96: 12
B97: Итого за Обед | C97: 867 | D97: =D89+D90+D91+D92+D93+D94+D95+D96 -> 28.42 | E97: =E89+E90+E91+E92+E93+E94+E95+E96 -> 31.96 | F97: 89.84 | G97: 701.4 | H97: 0.32 | I97: 0.15 | J97: 202.42 | K97: 0.09 | L97: 26.34 | M97: 708.98 | N97: 892.29 | O97: 271.88 | P97: 79.73 | Q97: 287.91 | R97: 7.59 | S97: 47.65 | T97: 9.24 | U97: 60.05
B98: Полдник
A99: Пром. | B99: Сок персиковый | C99: 200 | D99: 0.6 | E99: 0 | F99: 33 | G99: 134.4 | H99: 0.03 | I99: 0.06 | J99: 60 | K99: 0 | L99: 5 | M99: 9 | N99: 252 | O99: 9 | P99: 21 | Q99: 26 | R99: 0.3 | S99: 0 | T99: 0 | U99: 0
A100: 54-10в-2020 | B100: Булочка ванильная | C100: 60 | D100: 4.7 | E100: 4 | F100: 30.5 | G100: 176.9 | H100: 0.06 | I100: 0.03 | J100: 19.12 | K100: 0.14 | L100: 0 | M100: 240.68 | N100: 50.54 | O100: 17.63 | P100: 6.52 | Q100: 40.93 | R100: 0.57 | S100: 33.36 | T100: 3.15 | U100: 11.03
B101: Итого за Полдник | C101: =C99+C100 -> 260 | D101: =D99+D100 -> 5.3 | E101: 4 | F101: 63.5 | G101: 311.3 | H101: 0.09 | I101: 0.09 | J101: 79.12 | K101: 0.14 | L101: 5 | M101: 249.68 | N101: 302.54 | O101: 26.63 | P101: 27.52 | Q101: 66.93 | R101: 0.87 | S101: 33.36 | T101: 3.15 | U101: 11.03
B102: Ужин
A103: 54-22м-2020 | B103: Рагу из курицы | C103: 160/60 | D103: 23.05 | E103: 7.74 | F103: 19.27 | G103: 239 | H103: 0.15 | I103: 0.12 | J103: 285.64 | K103: 0 | L103: 13 | M103: 310 | N103: 812 | O103: 34 | P103: 102 | Q103: 213 | R103: 2.3 | S103: 47.26 | T103: 18.7 | U103: 172
A104: Пром. | B104: Хлеб ржаной | C104: 20 | D104: 1.3 | E104: 0.2 | F104: 6.7 | G104: 34.2 | H104: 0.04 | I104: 0.02 | J104: 0 | K104: 0 | L104: 0 | M104: 122 | N104: 49 | O104: 7 | P104: 9.4 | Q104: 31.6 | R104: 0.78 | S104: 0 | T104: 6.18 | U104: 0
A105: Пром. | B105: Хлеб пшеничный | C105: 30 | D105: 2.3 | E105: 0.2 | F105: 14.8 | G105: 70.3 | H105: 0.03 | I105: 0.01 | J105: 0 | K105: 0 | L105: 0 | M105: 149.7 | N105: 27.9 | O105: 6 | P105: 4.2 | Q105: 19.5 | R105: 0.33 | S105: 0.96 | T105: 1.8 | U105: 4.35
A106: 54-4гн-2020 | B106: Чай с молоком и сахаром | C106: 200 | D106: 1.6 | E106: 1.1 | F106: 8.6 | G106: 50.9 | H106: 0.01 | I106: 0.07 | J106: 6.9 | K106: 0 | L106: 0.3 | M106: 19.68 | N106: 81.35 | O106: 103.48 | P106: 9.92 | Q106: 46.33 | R106: 0.78 | S106: 4.5 | T106: 0.88 | U106: 10
B107: Итого за Ужин | C107: 470 | D107: =SUM(D103:D106) -> 28.25 | E107: =SUM(E103:E106) -> 9.24 | F107: 49.37 | G107: =SUM(G103:G106) -> 394.4 | H107: 0.23 | I107: 0.22 | J107: 292.54 | K107: 0 | L107: 13.3 | M107: 601.38 | N107: 970.25 | O107: 150.48 | P107: 125.52 | Q107: 310.43 | R107: 4.19 | S107: 52.72 | T107: 27.56 | U107: 186.35
B108: Ужин 2
A109: Пром. | B109: Ряженка 2.5% | C109: 200 | D109: 5.8 | E109: 5 | F109: 8.4 | G109: 101.8 | H109: 0.03 | I109: 0.21 | J109: 26.4 | K109: 0 | L109: 0 | M109: 76 | N109: 242 | O109: 218 | P109: 24 | Q109: 160 | R109: 0.2 | S109: 18 | T109: 1.8 | U109: 40
B110: Итого за ужин 2 | C110: =C109 -> 200 | D110: =D109 -> 5.8 | E110: 5 | F110: 8.4 | G110: 101.8 | H110: 0.03 | I110: 0.21 | J110: 26.4 | K110: 0 | L110: 0 | M110: 76 | N110: 242 | O110: 218 | P110: 24 | Q110: 160 | R110: 0.2 | S110: 18 | T110: 1.8 | U110: 40
B111: Итого за день | C111: =C87+C97+C101+C107+C110 -> 2197 | D111: =D87+D97+D101+D107+D110 -> 76.05 | E111: 64.65 | F111: 271.44 | G111: 1913.1 | H111: 0.79 | I111: 0.82 | J111: 673.62 | K111: 0.46 | L111: 45.09 | M111: 2043.6 | N111: 2596.25 | O111: 910.27 | P111: 287.76 | Q111: 1018.1 | R111: 13.91 | S111: 190.12 | T111: 56.22 | U111: 348.76
A113: 4 день, 1 неделя
A114: № рецептуры | B114: Прием пищи, наименование блюда | C114: Масса | D114: Пищевые вещества | G114: Энергетическая ценность | H114: Витамины | M114: Минеральные вещества
D115: Белки | E115: Жиры | F115: Углеводы | H115: B1 | I115: B2 | J115: A | K115: D | L115: C | M115: Na | N115: K | O115: Ca | P115: Mg | Q115: P | R115: Fe | S115: I | T115: Se | U115: F
C116: г | D116: г | E116: г | F116: г | G116: ккал | H116: мг | I116: мг | J116: мкг рет.экв | K116: мкг | L116: мг | M116: мг | N116: мг | O116: мг | P116: мг | Q116: мг | R116: мг | S116: мкг | T116: мкг | U116: мкг
B117: Завтрак
A118: 54-1з-2020 | B118: Сыр твердых сортов в нарезке | C118: 10 | D118: 2.8 | E118: 3.5 | F118: 0 | G118: 43 | H118: 0 | I118: 0.04 | J118: 31.2 | K118: 0.12 | L118: 0.08 | M118: 97.2 | N118: 10.56 | O118: 105.6 | P118: 4.2 | Q118: 60 | R118: 0.12 | S118: 0 | T118: 1.74 | U118: 0
A119: 54-13к-2020 | B119: Каша вязкая молочная пшеничная | C119: 150 | D119: 6.1 | E119: 6.9 | F119: 29 | G119: 202.7 | H119: 0.1 | I119: 0.13 | J119: 30.74 | K119: 0.1 | L119: 0.41 | M119: 256.57 | N119: 169.91 | O119: 113.68 | P119: 29.4 | Q119: 154.74 | R119: 1.64 | S119: 37.16 | T119: 24.8 | U119: 16.11
A120: 54-2гн-2020 | B120: Чай с сахаром | C120: 200 | D120: 0.2 | E120: 0 | F120: 6.4 | G120: 26.8 | H120: 0 | I120: 0.01 | J120: 0.3 | K120: 0 | L120: 0.04 | M120: 0.68 | N120: 20.76 | O120: 66.08 | P120: 3.83 | Q120: 7.18 | R120: 0.73 | S120: 0 | T120: 0 | U120: 0
A121: Пром. | B121: Хлеб пшеничный | C121: 40 | D121: 2.3 | E121: 0.2 | F121: 14.8 | G121: 70.3 | H121: 0.03 | I121: 0.01 | J121: 0 | K121: 0 | L121: 0 | M121: 149.7 | N121: 27.9 | O121: 6 | P121: 4.2 | Q121: 19.5 | R121: 0.33 | S121: 0.96 | T121: 1.8 | U121: 4.35
B122: Итого за Завтрак | C122: =C118+C119+C120+C121 -> 400 | D122: =D118+D119+D120+D121 -> 11.4 | E122: 10.6 | F122: 50.2 | G122: 342.8 | H122: 0.13 | I122: 0.19 | J122: 62.24 | K122: 0.22 | L122: 0.53 | M122: 504.15 | N122: 229.13 | O122: 291.36 | P122: 41.63 | Q122: 241.42 | R122: 2.82 | S122: 38.12 | T122: 28.34 | U122: 20.46
B123: Обед
A124: № т/к 41 | B124: Салат из отварной моркови с яблоками и растительным маслом | C124: 60 | D124: 0.6 | E124: 5.9 | F124: 4.6 | G124: 74.4 | H124: 0 | I124: 0 | J124: 0.7 | K124: 0 | L124: 1.4 | M124: 0 | N124: 0 | O124: 19.1 | P124: 13.6 | Q124: 19.6 | R124: 0.8 | S124: 0 | T124: 0 | U124: 0
A125: 54-6с-2020 | B125: Суп картофельный с клецками | C125: 200 | D125: 4.6 | E125: 3.3 | F125: 11.4 | G125: 93.6 | H125: 0.05 | I125: 0.04 | J125: 101.43 | K125: 0.05 | L125: 3.69 | M125: 58.01 | N125: 222.12 | O125: 13.28 | P125: 12.74 | Q125: 35.97 | R125: 0.54 | S125: 10.28 | T125: 0.94 | U125: 21.22
A126: 54-11г-2020 | B126: Картофельное пюре | C126: 150 | D126: 3.1 | E126: 5.3 | F126: 19.8 | G126: 139.4 | H126: 0.12 | I126: 0.11 | J126: 23.8 | K126: 0.09 | L126: 10.2 | M126: 161.78 | N126: 624.83 | O126: 39.49 | P126: 28.23 | Q126: 84.47 | R126: 1.03 | S126: 28.46 | T126: 0.78 | U126: 42.79
A127: №243 | B127: Сосиски говяжьи отварные, п/ф (2 шт) | C127: 100 | D127: 8.9 | E127: 7.35 | F127: 19.1 | G127: 202.15 | H127: 0 | I127: 0 | J127: 0.08 | K127: 0.01 | L127: 0 | M127: 0 | N127: 0 | O127: 7.44 | P127: 15.51 | Q127: 137.39 | R127: 1.74 | S127: 0 | T127: 0 | U127: 0
A128: Т/к №430 | B128: Чай с сахаром и яблоком | C128: 200 | D128: 0.2 | E128: 0 | F128: 8.2 | G128: 34.1 | H128: 0 | I128: 0 | J128: 0 | K128: 0 | L128: 0.4 | M128: 0 | N128: 0 | O128: 14.1 | P128: 6.5 | Q128: 8.4 | R128: 0.9 | S128: 0 | T128: 0 | U128: 0
A129: Пром. | B129: Хлеб пшеничный | C129: 20 | D129: 1.52 | E129: 0.16 | F129: 9.84 | G129: 46.9 | H129: 0.02 | I129: 0.01 | J129: 0 | K129: 0 | L129: 0 | M129: 100 | N129: 19 | O129: 4 | P129: 3 | Q129: 13 | R129: 0.2 | S129: 0.64 | T129: 1.2 | U129: 2.9
A130: Пром. | B130: Хлеб ржаной | C130: 20 | D130: 1.3 | E130: 0.2 | F130: 6.7 | G130: 34.2 | H130: 0.04 | I130: 0.02 | J130: 0 | K130: 0 | L130: 0 | M130: 122 | N130: 49 | O130: 7 | P130: 9.4 | Q130: 31.6 | R130: 0.78 | S130: 0 | T130: 6.18 | U130: 0
B131: Итого за Обед | C131: =C124+C125+C126+C127+C128+C129+C130 -> 750 | D131: =D124+D125+D126+D127+D128+D129+D130 -> 20.22 | E131: =E124+E125+E126+E127+E128+E129+E130 -> 22.21 | F131: =F124+F125+F126+F127+F128+F129+F130 -> 79.64 | G131: 624.75 | H131: 0.23 | I131: 0.18 | J131: 126.01 | K131: 0.15 | L131: 15.69 | M131: 441.79 | N131: 914.95 | O131: 104.41 | P131: 88.98 | Q131: 330.43 | R131: 5.99 | S131: 39.38 | T131: 9.1 | U131: 66.91
B132: Полдник
A133: Пром. | B133: Сушка простая | C133: 20 | D133: 3.27 | E133: 0.39 | F133: 20.64 | G133: 99.1 | H133: 0.05 | I133: 0.02 | J133: 0 | K133: 0 | L133: 0 | M133: 137.94 | N133: 46.06 | O133: 7.92 | P133: 12.01 | Q133: 31.58 | R133: 0.76 | S133: 0 | T133: 0 | U133: 0
A134: Пром. | B134: Сок яблочный | C134: 200 | D134: 1 | E134: 0.2 | F134: 20.2 | G134: 86.6 | H134: 0.02 | I134: 0.02 | J134: 0 | K134: 0 | L134: 4 | M134: 12 | N134: 240 | O134: 14 | P134: 8 | Q134: 14 | R134: 2.8 | S134: 0 | T134: 0 | U134: 0
B135: Итого за Полдник | C135: =C133+C134 -> 220 | D135: =D133+D134 -> 4.27 | E135: =E133+E134 -> 0.59 | F135: 40.84 | G135: 185.7 | H135: 0.07 | I135: 0.04 | J135: 0 | K135: 0 | L135: 4 | M135: 149.94 | N135: 286.06 | O135: 21.92 | P135: 20.01 | Q135: 45.58 | R135: 3.56 | S135: 0 | T135: 0 | U135: 0
B136: Ужин
A137: 54-6г-2020 | B137: Горошница | C137: 150 | D137: 3.6 | E137: 4.8 | F137: 36.4 | G137: 203.5 | H137: 0.03 | I137: 0.02 | J137: 18.36 | K137: 0.09 | L137: 0 | M137: 152.8 | N137: 46.55 | O137: 106.65 | P137: 23.59 | Q137: 72.57 | R137: 0.49 | S137: 20.76 | T137: 7.24 | U137: 27.19
A138: ном.рец №174 | B138: Тефтели мясные из говядины, полуфабрикат в соусе | C138: 75/30 | D138: 10.81 | E138: 10.4 | F138: 8.42 | G138: 168.9 | H138: 0 | I138: 0 | J138: 38.45 | K138: 0.01 | L138: 1.79 | M138: 3 | N138: 43 | O138: 45.75 | P138: 35.13 | Q138: 109 | R138: 1.6 | S138: 0 | T138: 0 | U138: 0
A139: 54-1гн-2020 | B139: Чай без сахара | C139: 200 | D139: 0.2 | E139: 0 | F139: 0.1 | G139: 1.4 | H139: 0 | I139: 0.01 | J139: 0.3 | K139: 0 | L139: 0.04 | M139: 0.62 | N139: 20.58 | O139: 65.96 | P139: 3.83 | Q139: 7.18 | R139: 0.71 | S139: 0 | T139: 0 | U139: 0
A140: Пром. | B140: Хлеб пшеничный | C140: 30 | D140: 2.3 | E140: 0.2 | F140: 14.8 | G140: 70.3 | H140: 0.03 | I140: 0.01 | J140: 0 | K140: 0 | L140: 0 | M140: 149.7 | N140: 27.9 | O140: 6 | P140: 4.2 | Q140: 19.5 | R140: 0.33 | S140: 0.96 | T140: 1.8 | U140: 4.35
A141: Пром. | B141: Фрукт (апельсин, банан, яблоко) | C141: 110 | D141: 1.57 | E141: 0.35 | F141: 14.17 | G141: 66.1 | H141: 0.05 | I141: 0.04 | J141: 8.4 | K141: 0 | L141: 42 | M141: 17 | N141: 286 | O141: 52 | P141: 20 | Q141: 35 | R141: 0.5 | S141: 3.5 | T141: 0.8 | U141: 29.75
B142: Итого за Ужин | C142: 595 | D142: =SUM(D137:D141) -> 18.48 | E142: =SUM(E137:E141) -> 15.75 | F142: 73.89 | G142: 510.2 | H142: 0.11 | I142: 0.08 | J142: 65.51 | K142: 0.1 | L142: 43.83 | M142: 323.12 | N142: 424.03 | O142: 276.36 | P142: 86.75 | Q142: 243.25 | R142: 3.63 | S142: 25.22 | T142: 9.84 | U142: 61.29
B143: Ужин 2
A144: Пром. | B144: Кефир 3.2% | C144: 200 | D144: 5.8 | E144: 5 | F144: 8 | G144: 100.2 | H144: 0.06 | I144: 0.27 | J144: 26.4 | K144: 0 | L144: 1 | M144: 76 | N144: 242 | O144: 211 | P144: 24 | Q144: 157 | R144: 0.2 | S144: 18 | T144: 3.5 | U144: 40
B145: Итого за ужин 2 | C145: =C144 -> 200 | D145: =D144 -> 5.8 | E145: 5 | F145: 8 | G145: 100.2 | H145: 0.06 | I145: 0.27 | J145: 26.4 | K145: 0 | L145: 1 | M145: 76 | N145: 242 | O145: 211 | P145: 24 | Q145: 157 | R145: 0.2 | S145: 18 | T145: 3.5 | U145: 40
B146: Итого за день | C146: =C122+C131+C135+C142+C145 -> 2165 | D146: =D122+D131+D135+D142+D145 -> 60.17 | E146: 54.15 | F146: 252.57 | G146: 1763.65 | H146: 0.6 | I146: 0.76 | J146: 280.16 | K146: 0.47 | L146: 65.05 | M146: 1495 | N146: 2096.17 | O146: 905.05 | P146: 261.37 | Q146: 1017.68 | R146: 16.2 | S146: 120.72 | T146: 50.78 | U146: 188.66
A148: 5 день, 1 неделя
A149: № рецептуры | B149: Прием пищи, наименование блюда | C149: Масса | D149: Пищевые вещества | G149: Энергетическая ценность | H149: Витамины | M149: Минеральные вещества
D150: Белки | E150: Жиры | F150: Углеводы | H150: B1 | I150: B2 | J150: A | K150: D | L150: C | M150: Na | N150: K | O150: Ca | P150: Mg | Q150: P | R150: Fe | S150: I | T150: Se | U150: F
C151: г | D151: г | E151: г | F151: г | G151: ккал | H151: мг | I151: мг | J151: мкг рет.экв | K151: мкг | L151: мг | M151: мг | N151: мг | O151: мг | P151: мг | Q151: мг | R151: мг | S151: мкг | T151: мкг | U151: мкг
B152: Завтрак
A153: 53-19з-2020 | B153: Масло сливочное (порциями) | C153: 10 | D153: 0.08 | E153: 7.25 | F153: 0.13 | G153: 66.1 | H153: 0 | I153: 0.01 | J153: 27 | K153: 0.13 | L153: 0 | M153: 1.14 | N153: 2.49 | O153: 2.11 | P153: 0 | Q153: 2.61 | R153: 0.02 | S153: 0 | T153: 0.1 | U153: 0.3
A154: 54-16к-2020 | B154: Каша "Дружба" | C154: 160 | D154: 3.99 | E154: 4.72 | F154: 19.2 | G154: 135.1 | H154: 0.06 | I154: 0.1 | J154: 21.73 | K154: 0.05 | L154: 0 | M154: 268 | N154: 125 | O154: 110 | P154: 21 | Q154: 100 | R154: 0.4 | S154: 39.91 | T154: 3.2 | U154: 24.89
A155: 54-21гн-2020 | B155: Какао с молоком | C155: 200 | D155: 4.7 | E155: 3.5 | F155: 12.5 | G155: 100.4 | H155: 0.04 | I155: 0.16 | J155: 17.25 | K155: 0 | L155: 0.68 | M155: 49.95 | N155: 220.33 | O155: 167.68 | P155: 34.32 | Q155: 130.28 | R155: 1.09 | S155: 11.7 | T155: 2.29 | U155: 38.25
A156: Пром. | B156: Хлеб пшеничный | C156: 30 | D156: 2.3 | E156: 0.2 | F156: 14.8 | G156: 70.3 | H156: 0.03 | I156: 0.01 | J156: 0 | K156: 0 | L156: 0 | M156: 149.7 | N156: 27.9 | O156: 6 | P156: 4.2 | Q156: 19.5 | R156: 0.33 | S156: 0.96 | T156: 1.8 | U156: 4.35
B157: Итого за Завтрак | C157: =C153+C154+C155+C156 -> 400 | D157: =D153+D154+D155+D156 -> 11.07 | E157: 15.67 | F157: 46.63 | G157: 371.9 | H157: 0.13 | I157: 0.28 | J157: 65.98 | K157: 0.18 | L157: 0.68 | M157: 468.79 | N157: 375.72 | O157: 285.79 | P157: 59.52 | Q157: 252.39 | R157: 1.84 | S157: 52.57 | T157: 7.39 | U157: 67.79
B158: Обед
A159: № Т/к 40 | B159: Салат картофельный с морковью, зеленым горошком и растительным маслом | C159: 60 | D159: 0.5 | E159: 5.7 | F159: 4.5 | G159: 66.9 | H159: 0 | I159: 0 | J159: 0.4 | K159: 0 | L159: 4.5 | M159: 0 | N159: 0 | O159: 13.1 | P159: 15 | Q159: 32.5 | R159: 0.6 | S159: 0 | T159: 0 | U159: 0
A160: 54-8с-2020 | B160: Суп гороховый | C160: 200 | D160: 6.7 | E160: 4.6 | F160: 16.3 | G160: 133.1 | H160: 0.14 | I160: 0.05 | J160: 97.19 | K160: 0 | L160: 4.77 | M160: 95.82 | N160: 382.43 | O160: 26.94 | P160: 29 | Q160: 80.47 | R160: 1.48 | S160: 15.96 | T160: 2.01 | U160: 28.88
A161: 54-12м-2020 | B161: Плов с куринными грудками | C161: 150/50 | D161: 11.7 | E161: 8.98 | F161: 26.01 | G161: 233.2 | H161: 0.07 | I161: 0.06 | J161: 144.87 | K161: 0 | L161: 2.08 | M161: 272.9 | N161: 287.76 | O161: 72.64 | P161: 78.85 | Q161: 174.89 | R161: 1.53 | S161: 37.41 | T161: 19.63 | U161: 118.1
A162: 54-2хн-2020 | B162: Компот из кураги | C162: 200 | D162: 1 | E162: 0.1 | F162: 15.6 | G162: 66.9 | H162: 0.01 | I162: 0.03 | J162: 69.96 | K162: 0 | L162: 0.32 | M162: 2.64 | N162: 285.2 | O162: 90.5 | P162: 18.27 | Q162: 25.4 | R162: 0.58 | S162: 0 | T162: 0 | U162: 0
A163: Пром. | B163: Хлеб пшеничный | C163: 20 | D163: 1.52 | E163: 0.16 | F163: 9.84 | G163: 46.9 | H163: 0.02 | I163: 0.01 | J163: 0 | K163: 0 | L163: 0 | M163: 100 | N163: 19 | O163: 4 | P163: 3 | Q163: 13 | R163: 0.2 | S163: 0.64 | T163: 1.2 | U163: 2.9
A164: Пром. | B164: Хлеб ржаной | C164: 20 | D164: 1.3 | E164: 0.2 | F164: 6.7 | G164: 34.2 | H164: 0.04 | I164: 0.02 | J164: 0 | K164: 0 | L164: 0 | M164: 122 | N164: 49 | O164: 7 | P164: 9.4 | Q164: 31.6 | R164: 0.78 | S164: 0 | T164: 6.18 | U164: 0
A165: 54-10в-2020 | B165: Булочка ванильная | C165: 60 | D165: 4.7 | E165: 4 | F165: 30.5 | G165: 176.9 | H165: 0.06 | I165: 0.03 | J165: 19.12 | K165: 0.14 | L165: 0 | M165: 240.68 | N165: 50.54 | O165: 17.63 | P165: 6.52 | Q165: 40.93 | R165: 0.57 | S165: 33.36 | T165: 3.15 | U165: 11.03
B166: Итого за Обед | C166: 760 | D166: =SUM(D159:D165) -> 27.42 | E166: =SUM(E159:E165) -> 23.74 | F166: 109.45 | G166: 758.1 | H166: 0.34 | I166: 0.2 | J166: 331.54 | K166: 0.14 | L166: 11.67 | M166: 834.04 | N166: 1073.93 | O166: 231.81 | P166: 160.04 | Q166: 398.79 | R166: 5.74 | S166: 87.37 | T166: 32.17 | U166: 160.91
B167: Полдник
A168: Пром. | B168: Сок персиковый | C168: 200 | D168: 0.6 | E168: 0 | F168: 33 | G168: 134.4 | H168: 0.03 | I168: 0.06 | J168: 60 | K168: 0 | L168: 5 | M168: 9 | N168: 252 | O168: 9 | P168: 21 | Q168: 26 | R168: 0.3 | S168: 0 | T168: 0 | U168: 0
A169: Пром. | B169: Пряник | C169: 30 | D169: 1.8 | E169: 1.4 | F169: 22.5 | G169: 109.8 | H169: 0.02 | I169: 0.01 | J169: 0 | K169: 0 | L169: 0 | M169: 0.6 | N169: 21.3 | O169: 3.3 | P169: 2.7 | Q169: 15 | R169: 0.24 | S169: 0 | T169: 0 | U169: 0
B170: Итого за Полдник | C170: =C168+C169 -> 230 | D170: =D168+D169 -> 2.4 | E170: 1.4 | F170: 55.5 | G170: 244.2 | H170: 0.05 | I170: 0.07 | J170: 60 | K170: 0 | L170: 5 | M170: 9.6 | N170: 273.3 | O170: 12.3 | P170: 23.7 | Q170: 41 | R170: 0.54 | S170: 0 | T170: 0 | U170: 0
B171: Ужин
A172: Рец. По сборнику | B172: Пельмени мясные отварные П/Ф | C172: 200 | D172: 10.34 | E172: 12.175 | F172: 20.34 | G172: 237 | H172: 0.159 | I172: 0 | J172: 0.18 | K172: 0 | L172: 0.491 | M172: 0 | N172: 0 | O172: 79.453 | P172: 10.579 | Q172: 239.018 | R172: 0.01 | S172: 0 | T172: 0 | U172: 0
A173: 54-2гн-2020 | B173: Чай-заварка | C173: 200 | D173: 0.2 | E173: 0 | F173: 6.4 | G173: 26.8 | H173: 0 | I173: 0.01 | J173: 0.3 | K173: 0 | L173: 0.04 | M173: 0.68 | N173: 20.76 | O173: 66.08 | P173: 3.83 | Q173: 7.18 | R173: 0.73 | S173: 0 | T173: 0 | U173: 0
A174: Пром. | B174: Хлеб пшеничный | C174: 30 | D174: 2.3 | E174: 0.2 | F174: 14.8 | G174: 70.3 | H174: 0.03 | I174: 0.01 | J174: 0 | K174: 0 | L174: 0 | M174: 149.7 | N174: 27.9 | O174: 6 | P174: 4.2 | Q174: 19.5 | R174: 0.33 | S174: 0.96 | T174: 1.8 | U174: 4.35
A175: Пром. | B175: Хлеб ржаной | C175: 20 | D175: 1.3 | E175: 0.2 | F175: 6.7 | G175: 34.2 | H175: 0.04 | I175: 0.02 | J175: 0 | K175: 0 | L175: 0 | M175: 122 | N175: 49 | O175: 7 | P175: 9.4 | Q175: 31.6 | R175: 0.78 | S175: 0 | T175: 6.18 | U175: 0
B176: Итого за Ужин | C176: =C172+C173+C174+C175 -> 450 | D176: =D172+D173+D174+D175 -> 14.14 | E176: 12.575 | F176: 48.24 | G176: 368.3 | H176: 0.229 | I176: 0.04 | J176: 0.48 | K176: 0 | L176: 0.531 | M176: 272.38 | N176: 97.66 | O176: 158.533 | P176: 28.009 | Q176: 297.298 | R176: 1.85 | S176: 0.96 | T176: 7.98 | U176: 4.35
B177: Ужин 2
A178: Пром. | B178: Ряженка 2.5% | C178: 200 | D178: 5.8 | E178: 5 | F178: 8.4 | G178: 101.8 | H178: 0.03 | I178: 0.21 | J178: 26.4 | K178: 0 | L178: 0 | M178: 76 | N178: 242 | O178: 218 | P178: 24 | Q178: 160 | R178: 0.2 | S178: 18 | T178: 1.8 | U178: 40
B179: Итого за ужин 2 | C179: =C178 -> 200 | D179: =D178 -> 5.8 | E179: 5 | F179: 8.4 | G179: 101.8 | H179: 0.03 | I179: 0.21 | J179: 26.4 | K179: 0 | L179: 0 | M179: 76 | N179: 242 | O179: 218 | P179: 24 | Q179: 160 | R179: 0.2 | S179: 18 | T179: 1.8 | U179: 40
B180: Итого за день | C180: =C157+C166+C170+C176+C179 -> 2040 | D180: 60.83 | E180: 58.385 | F180: 268.22 | G180: 1844.3 | H180: 0.779 | I180: 0.8 | J180: 484.4 | K180: 0.32 | L180: 17.881 | M180: 1660.81 | N180: 2062.61 | O180: 906.433 | P180: 295.269 | Q180: 1149.478 | R180: 10.17 | S180: 158.9 | T180: 49.34 | U180: 273.05
A182: 7 день, 2 неделя
A183: № рецептуры | B183: Прием пищи, наименование блюда | C183: Масса | D183: Пищевые вещества | G183: Энергетическая ценность | H183: Витамины | M183: Минеральные вещества
D184: Белки | E184: Жиры | F184: Углеводы | H184: B1 | I184: B2 | J184: A | K184: D | L184: C | M184: Na | N184: K | O184: Ca | P184: Mg | Q184: P | R184: Fe | S184: I | T184: Se | U184: F
C185: г | D185: г | E185: г | F185: г | G185: ккал | H185: мг | I185: мг | J185: мкг рет.экв | K185: мкг | L185: мг | M185: мг | N185: мг | O185: мг | P185: мг | Q185: мг | R185: мг | S185: мкг | T185: мкг | U185: мкг
B186: Завтрак
A187: 53-19з-2020 | B187: Масло сливочное (порциями) | C187: 10 | D187: 0.08 | E187: 7.25 | F187: 0.13 | G187: 66.1 | H187: 0 | I187: 0.01 | J187: 27 | K187: 0.13 | L187: 0 | M187: 1.14 | N187: 2.49 | O187: 2.11 | P187: 0 | Q187: 2.61 | R187: 0.02 | S187: 0 | T187: 0.1 | U187: 0.3
A188: 54-22к-2020 | B188: Каша жидкая молочная овсяная | C188: 150 | D188: 5.1 | E188: 5.6 | F188: 18.5 | G188: 144.5 | H188: 0.11 | I188: 0.13 | J188: 21.81 | K188: 0.05 | L188: 0.46 | M188: 260.87 | N188: 177.7 | O188: 123.12 | P188: 34.24 | Q188: 140.9 | R188: 0.89 | S188: 39 | T188: 7.47 | U188: 37.21
A189: 54-4гн-2020 | B189: Чай с молоком и сахаром | C189: 200 | D189: 1.6 | E189: 1.1 | F189: 8.6 | G189: 50.9 | H189: 0.01 | I189: 0.07 | J189: 6.9 | K189: 0 | L189: 0.3 | M189: 19.68 | N189: 81.35 | O189: 103.48 | P189: 9.92 | Q189: 46.33 | R189: 0.78 | S189: 4.5 | T189: 0.88 | U189: 10
A190: Пром. | B190: Хлеб пшеничный | C190: 30 | D190: 2.3 | E190: 0.2 | F190: 14.8 | G190: 70.3 | H190: 0.03 | I190: 0.01 | J190: 0 | K190: 0 | L190: 0 | M190: 149.7 | N190: 27.9 | O190: 6 | P190: 4.2 | Q190: 19.5 | R190: 0.33 | S190: 0.96 | T190: 1.8 | U190: 4.35
B191: Итого за Завтрак | C191: =C187+C188+C189+C190 -> 390 | D191: =D187+D188+D189+D190 -> 9.08 | E191: 14.15 | F191: 42.03 | G191: 331.8 | H191: 0.15 | I191: 0.22 | J191: 55.71 | K191: 0.18 | L191: 0.76 | M191: 431.39 | N191: 289.44 | O191: 234.71 | P191: 48.36 | Q191: 209.34 | R191: 2.02 | S191: 44.46 | T191: 10.25 | U191: 51.86
B192: Обед
A193: № т/к 41 | B193: Салат из отварной моркови с яблоками и растительным маслом | C193: 60 | D193: 0.6 | E193: 5.9 | F193: 4.6 | G193: 74.4 | H193: 0 | I193: 0 | J193: 0.7 | K193: 0 | L193: 1.4 | M193: 0 | N193: 0 | O193: 19.1 | P193: 13.6 | Q193: 19.6 | R193: 0.8 | S193: 0 | T193: 0 | U193: 0
A194: 62 | B194: Борщ | C194: 200 | D194: 10.77 | E194: 6.46 | F194: 19.1 | G194: 166 | H194: 0.1 | I194: 0 | J194: 0.2 | K194: 0 | L194: 10.7 | M194: 0 | N194: 0 | O194: 43.5 | P194: 26.9 | Q194: 57.4 | R194: 1.4 | S194: 0 | T194: 0 | U194: 0
A195: 54-4г-2020 | B195: Каша гречневая рассыпчатая | C195: 150 | D195: 8.2 | E195: 6.3 | F195: 35.9 | G195: 233.7 | H195: 0.21 | I195: 0.12 | J195: 19.19 | K195: 0.09 | L195: 0 | M195: 149.45 | N195: 219.36 | O195: 46.62 | P195: 120.16 | Q195: 180.99 | R195: 4.05 | S195: 22.28 | T195: 3.52 | U195: 16.06
A196: №243 | B196: Сосиски говяжьи отварные, п/ф (2 шт) | C196: 100 | D196: 13.2 | E196: 22.84 | F196: 1.8 | G196: 202.15 | H196: 0 | I196: 0 | J196: 0.08 | K196: 0.01 | L196: 0 | M196: 0 | N196: 0 | O196: 7.44 | P196: 15.51 | Q196: 137.39 | R196: 1.74 | S196: 0 | T196: 0 | U196: 0
A197: Т/к №430 | B197: Чай с сахаром и яблоком | C197: 200 | D197: 0.2 | E197: 0 | F197: 8.2 | G197: 34.1 | H197: 0 | I197: 0 | J197: 0 | K197: 0 | L197: 0.4 | M197: 0 | N197: 0 | O197: 14.1 | P197: 6.5 | Q197: 8.4 | R197: 0.9 | S197: 0 | T197: 0 | U197: 0
A198: № Т/К 399 | B198: Блины фаршированные (клубника, вишня, сгущенное молоко) 2 шт | C198: 140 | D198: 5.6 | E198: 6.7 | F198: 37.8 | G198: 245 | H198: 0.16 | I198: 0 | J198: 0 | K198: 0 | L198: 0 | M198: 0 | N198: 0 | O198: 196.9 | P198: 38.48 | Q198: 85 | R198: 0.96 | S198: 0 | T198: 0 | U198: 0
A199: Пром. | B199: Хлеб ржаной | C199: 20 | D199: 1.3 | E199: 0.2 | F199: 6.7 | G199: 34.2 | H199: 0.04 | I199: 0.02 | J199: 0 | K199: 0 | L199: 0 | M199: 122 | N199: 49 | O199: 7 | P199: 9.4 | Q199: 31.6 | R199: 0.78 | S199: 0 | T199: 6.18 | U199: 0
B200: Итого за Обед | C200: =C193+C194+C195+C196+C197+C198+C199 -> 870 | D200: =D193+D194+D195+D196+D197+D198+D199 -> 39.87 | E200: =E193+E194+E195+E196+E197+E198+E199 -> 48.4 | F200: 114.1 | G200: 989.55 | H200: 0.51 | I200: 0.14 | J200: 20.17 | K200: 0.1 | L200: 12.5 | M200: 271.45 | N200: 268.36 | O200: 334.66 | P200: 230.55 | Q200: 520.38 | R200: 10.63 | S200: 22.28 | T200: 9.7 | U200: 16.06
B201: Полдник
A202: Пром. | B202: Сок яблочный | C202: 200 | D202: 1 | E202: 0.2 | F202: 20.2 | G202: 86.6 | H202: 0.02 | I202: 0.02 | J202: 0 | K202: 0 | L202: 4 | M202: 12 | N202: 240 | O202: 14 | P202: 8 | Q202: 14 | R202: 2.8 | S202: 0 | T202: 0 | U202: 0
A203: Пром. | B203: Сушка простая | C203: 20 | D203: 3.27 | E203: 0.39 | F203: 20.64 | G203: 99.1 | H203: 0.05 | I203: 0.02 | J203: 0 | K203: 0 | L203: 0 | M203: 137.94 | N203: 46.06 | O203: 7.92 | P203: 12.01 | Q203: 31.58 | R203: 0.76 | S203: 0 | T203: 0 | U203: 0
B204: Итого за Полдник | C204: =C202+C203 -> 220 | D204: =D202+D203 -> 4.27 | E204: 0.59 | F204: 40.84 | G204: 185.7 | H204: 0.07 | I204: 0.04 | J204: 0 | K204: 0 | L204: 4 | M204: 149.94 | N204: 286.06 | O204: 21.92 | P204: 20.01 | Q204: 45.58 | R204: 3.56 | S204: 0 | T204: 0 | U204: 0
B205: Ужин
A206: 54-6г-2020 | B206: Рис отварной | C206: 150 | D206: 5.3 | E206: 4.9 | F206: 32.8 | G206: 196.8 | H206: 0.06 | I206: 0.02 | J206: 18.36 | K206: 0.09 | L206: 0 | M206: 149.04 | N206: 53.8 | O206: 105.83 | P206: 7.19 | Q206: 40.7 | R206: 0.73 | S206: 20.77 | T206: 0.06 | U206: 11.92
A207: 54-25м-2020 | B207: Курица тушеная с морковью | C207: 40/60 | D207: 14.12 | E207: 5.78 | F207: 4.46 | G207: 126.4 | H207: 0.04 | I207: 0.05 | J207: 286.31 | K207: 0.02 | L207: 0 | M207: 249 | N207: 209 | O207: 33 | P207: 55 | Q207: 112 | R207: 0.9 | S207: 35.07 | T207: 12 | U207: 94.93
... 152 more rows
